fUSD/lending_fUSD_20260605
["ID","MTS","AMOUNT","RATE_DAILY","PERIOD"]
[424113685,1780600246000,-3641.0,0.00028536,2]
[424113690,1780600246000,-169.73,0.0002863,30]
[424113695,1780600246000,-200.0,0.00028634,2]
[424113689,1780600246000,-167.47,0.0002863,30]
[424113693,1780600246000,-165.42,0.0002863,30]
[424113699,1780600246000,-167.47,0.00028797,7]
[424113704,1780600246000,-154.54,0.00028888,2]
[424113698,1780600246000,-169.73,0.00028797,7]
[424113697,1780600246000,-500.33408396,0.00028767,2]
[424113672,1780600246000,-300.0,0.00028,7]
[424113694,1780600246000,-157.94,0.0002863,30]
[424113666,1780600246000,-2044.0,0.00027911,2]
[424113643,1780600246000,-328.8,0.000276,7]
[424113665,1780600246000,-210.75996383,0.0002791,2]
[424113642,1780600246000,-753.0,0.000275,7]
[424113706,1780600246000,-20434.0,0.00028904,2]
[424113640,1780600246000,-204.71501492,0.000275,2]
[424113641,1780600246000,-500.0,0.000275,7]
[424113644,1780600246000,-279.0,0.00027616,2]
[424113646,1780600246000,-213.0,0.00027616,2]
[424113657,1780600246000,-150.0,0.00027688,2]
[424113655,1780600246000,-250.0,0.00027688,2]
[424113652,1780600246000,-247.005,0.00027688,2]
[424113651,1780600246000,-232.413,0.00027688,2]
[424113647,1780600246000,-174.64,0.00027685,2]
[424113650,1780600246000,-230.0,0.00027688,2]
[424113653,1780600246000,-250.0,0.00027688,2]
[424113648,1780600246000,-277.0,0.00027688,2]
[424113656,1780600246000,-246.38,0.00027688,2]
[424113645,1780600246000,-150.0,0.00027616,2]
[424113654,1780600246000,-166.854,0.00027688,2]
[424113649,1780600246000,-200.0,0.00027688,2]
[424113658,1780600246000,-151.191,0.00027688,2]
[424113660,1780600246000,-1357.0,0.00027688,2]
[424113659,1780600246000,-187.0,0.00027688,2]
[424113661,1780600246000,-158.16718548,0.00027695,2]
[424113663,1780600246000,-164.17126865,0.00027702,2]
[424113662,1780600246000,-258.15,0.000277,14]
[424113669,1780600246000,-232.83018654,0.00028,30]
[424113670,1780600246000,-325.0,0.00028,2]
[424113671,1780600246000,-961.34218118,0.00028,5]
[424113664,1780600246000,-1478.016952,0.00027797,15]
[424113668,1780600246000,-150.0,0.00027984,30]
[424113667,1780600246000,-157.17,0.00027945,2]
[424113707,1780600246000,-157.93,0.00028931,7]
[424113710,1780600246000,-167.47,0.00028964,2]
[424113702,1780600246000,-154.54,0.00028802,30]
[424113758,1780600246000,-150.0,0.00029,2]
[424113763,1780600246000,-634.91519112,0.00029,2]
[424113757,1780600246000,-150.0,0.00029,2]
[424113760,1780600246000,-150.0,0.00029,2]
[424113756,1780600246000,-150.0,0.00029,2]
[424113759,1780600246000,-150.0,0.00029,2]
[424113764,1780600246000,-328.34253729,0.00029007,2]
[424113754,1780600246000,-150.0,0.00029,2]
[424113762,1780600246000,-150.0,0.00029,2]
[424113765,1780600246000,-207.97809629,0.00029007,2]
[424113768,1780600246000,-157.17,0.00029041,30]
[424113779,1780600246000,-169.73,0.00029132,30]
[424113778,1780600246000,-500.0,0.0002913,5]
[424113782,1780600246000,-167.47,0.00029132,30]
[424113783,1780600246000,-167.48,0.00029132,30]
[424113696,1780600246000,-154.54,0.00028716,7]
[424113785,1780600246000,-165.42,0.00029132,30]
[424113769,1780600246000,-154.54,0.0002906,30]
[424113776,1780600246000,-198.44990076,0.0002913,5]
[424113789,1780600246000,-154.54,0.00029146,2]
[424113772,1780600246000,-500.0,0.0002913,5]
[424113774,1780600246000,-304.55614525,0.0002913,7]
[424113791,1780600246000,-150.0,0.00029159,30]
[424113796,1780600246000,-164.69,0.00029232,2]
[424113802,1780600246000,-506.0,0.00029252,4]
[424113798,1780600246000,-154.58,0.00029232,7]
[424113794,1780600246000,-1000.0,0.00029204,7]
[424113800,1780600246000,-157.94,0.00029232,2]
[424113804,1780600246000,-169.73,0.00029299,7]
[424113761,1780600246000,-150.0,0.00029,2]
[424113755,1780600246000,-150.0,0.00029,2]
[424113787,1780600246000,-150.0,0.00029145,20]
[424113747,1780600246000,-10000.0,0.00029,2]
[424113700,1780600246000,-167.48,0.00028797,7]
[424113753,1780600246000,-7017.40586421,0.00029,7]
[424113708,1780600246000,-157.94,0.00028931,7]
[424113705,1780600246000,-800.0,0.000289,10]
[424113703,1780600246000,-3946.20000384,0.00028888,2]
[424113709,1780600246000,-169.73,0.00028964,2]
[424113711,1780600246000,-167.48,0.00028964,2]
[424113718,1780600246000,-349.28,0.0002899,2]
[424113720,1780600246000,-316.33437096,0.00029,2]
[424113729,1780600246000,-983.8,0.00029,2]
[424113714,1780600246000,-204197.5,0.00028972,2]
[424113722,1780600246000,-223.0009441,0.00029,2]
[424113716,1780600246000,-154.54,0.00028974,7]
[424113725,1780600246000,-227.56421873,0.00029,2]
[424113712,1780600246000,-165.42,0.00028964,2]
[424113727,1780600246000,-1500.0,0.00029,2]
[424113749,1780600246000,-1876.2,0.00029,2]
[424113748,1780600246000,-200.0,0.00029,2]
[424113731,1780600246000,-629.60355887,0.00029,2]
[424113752,1780600246000,-500.0,0.00029,2]
[424113745,1780600246000,-10000.0,0.00029,2]
[424113751,1780600246000,-10000.0,0.00029,2]
[424113735,1780600246000,-511.16350929,0.00029,2]
[424113750,1780600246000,-4027.67,0.00029,2]
[424113743,1780600246000,-567.05842632,0.00029,2]
[424113741,1780600246000,-3000.0,0.00029,2]
[424113737,1780600246000,-1720.0,0.00029,2]
[424113739,1780600246000,-2872.06675281,0.00029,2]
[424113733,1780600246000,-219.68020016,0.00029,2]
[424113849,1780600247000,-272.43754262,0.0002987,2]
[424113830,1780600247000,-157.93,0.00029534,30]
[424113840,1780600247000,-208.56857307,0.00029852,2]
[424113839,1780600247000,-229.1934844,0.00029848,2]
[424113841,1780600247000,-523.92,0.0002986,2]
[424113838,1780600247000,-157.94,0.00029835,7]
[424113850,1780600247000,-191.13077561,0.0002987,2]
[424113848,1780600247000,-474.50155645,0.0002987,2]
[424113847,1780600247000,-174.44975369,0.0002987,2]
[424113845,1780600247000,-234.83963541,0.0002987,2]
[424113843,1780600247000,-158.59563751,0.00029864,2]
[424113844,1780600247000,-247.6577345,0.00029864,2]
[424113846,1780600247000,-210.70653432,0.0002987,2]
[424113828,1780600247000,-157.94,0.00029534,30]
[424113852,1780600247000,-170.70318057,0.0002987,2]
[424113842,1780600247000,-186.61698284,0.00029864,2]
[424113825,1780600247000,-1000.0,0.000295,2]
[424113819,1780600247000,-168.21,0.00029467,2]
[424113827,1780600247000,-1000.0,0.00029522,7]
[424113851,1780600247000,-446.0018882,0.0002987,2]
[424113810,1780600247000,-165.42,0.00029299,7]
[424113808,1780600247000,-167.48,0.00029299,7]
[424113812,1780600247000,-1000.0,0.00029422,7]
[424113815,1780600247000,-36743.9158334,0.00029463,2]
[424113813,1780600247000,-150.0,0.00029422,3]
[424113807,1780600247000,-167.47,0.00029299,7]
[424113823,1780600247000,-165.42,0.00029467,2]
[424113817,1780600247000,-1000.0,0.00029466,7]
[424113834,1780600247000,-157.17,0.00029589,2]
[424113837,1780600247000,-1000.0,0.00029819,7]
[424113833,1780600247000,-150.0,0.00029589,30]
[424113831,1780600247000,-150.0,0.00029534,2]
[424113835,1780600247000,-1000.0,0.00029608,7]
[424113836,1780600247000,-9215.44525905,0.00029712,2]
[424113832,1780600247000,-1000.0,0.00029584,7]
[424113821,1780600247000,-169.73,0.00029467,2]
[424113862,1780600247000,-212.53391393,0.00029877,2]
[424113881,1780600247000,-350.0,0.00030035,15]
[424113854,1780600247000,-455.12843745,0.0002987,2]
[424113876,1780600247000,-1152.91,0.0003,7]
[424113877,1780600247000,-11338.01992944,0.0003,2]
[424113885,1780600247000,-310.6745716,0.0003011,2]
[424113888,1780600247000,-14120.52543672,0.0003013,2]
[424113878,1780600247000,-44728.36144286,0.0003,2]
[424113879,1780600247000,-508.884,0.0003,6]
[424113887,1780600247000,-1094.03985018,0.0003013,2]
[424113871,1780600247000,-1687.01508267,0.0003,3]
[424113889,1780600247000,-646.06446933,0.0003013,2]
[424113886,1780600247000,-3109.1573679,0.0003011,2]
[424113884,1780600247000,-114052.8998543,0.0003011,2]
[424113883,1780600247000,-34017.5,0.0003011,2]
[424113882,1780600247000,-1111.2,0.000301,30]
[424113880,1780600247000,-215.73365239,0.0003,3]
[424113891,1780600247000,-302.47256394,0.0003013,2]
[424113892,1780600247000,-1990940.04793123,0.0003013,7]
[424113890,1780600247000,-205.52823685,0.0003013,2]
[424113873,1780600247000,-4661.38053202,0.0003,24]
[424113863,1780600247000,-800.0,0.000299,10]
[424113870,1780600247000,-20835.0233457,0.0003,2]
[424113875,1780600247000,-300.0,0.0003,28]
[424113853,1780600247000,-290.46429187,0.0002987,2]
[424113861,1780600247000,-233.94964382,0.00029877,2]
[424113857,1780600247000,-286.05265598,0.00029877,2]
[424113855,1780600247000,-231.16660407,0.0002987,2]
[424113856,1780600247000,-199.5573409,0.00029877,2]
[424113858,1780600247000,-492.51380594,0.00029877,2]
[424113860,1780600247000,-231.53177749,0.00029877,2]
[424113859,1780600247000,-415.95619259,0.00029877,2]
[424113865,1780600247000,-1000.0,0.0002992,7]
[424113866,1780600247000,-241.52866936,0.0002999,2]
[424113867,1780600247000,-163.12239219,0.0002999,2]
[424113874,1780600247000,-9725.71753075,0.0003,14]
[424113869,1780600247000,-1941.91000824,0.0003,3]
[424113872,1780600247000,-11180.83894307,0.0003,2]
[424113868,1780600247000,-99912.57149913,0.0003,5]
[424113864,1780600247000,-1000.0,0.00029908,7]
[424113893,1780600248000,-2904.59102342,0.0003013,7]
[424113894,1780600248000,-1483.57598021,0.0003013,7]
[424113895,1780600248000,-640.01,0.0003013,7]
[424113897,1780600248000,-2090.40897658,0.0003013,7]
[424113898,1780600248000,-1687.49635169,0.0003013,7]
[424113896,1780600248000,-12803.79875044,0.0003013,7]
[424113899,1780600248000,-1018.04150032,0.0003013,7]
[424113900,1780600248000,-16000.25,0.0003013,7]
[424113901,1780600249000,-859.21478729,0.00016205,2]
[424113902,1780600249000,-741.35519692,0.00016205,2]
[424113904,1780600249000,-1213.32052551,0.0003013,7]
[424113905,1780600249000,-451.68078309,0.0003013,7]
[424113903,1780600249000,-177.84110936,0.0002249,2]
[424113908,1780600250000,-200.0,0.00026268,2]
[424113909,1780600250000,-200.0,0.00027044,2]
[424113907,1780600250000,-418.0,0.00025836,2]
[424113910,1780600250000,-200.0,0.0002782,2]
[424113906,1780600250000,-443.0,0.00017115,2]
[424113912,1780600250000,-40.1686978,0.00028596,2]
[424113911,1780600250000,-159.8313022,0.00028596,2]
[424113915,1780600250000,-200.0,0.00025492,2]
[424113914,1780600250000,-9089.83130213,0.0003013,7]
[424113913,1780600250000,-418.0,0.00028836,2]
[424113916,1780600250000,-3210.0,0.0003013,7]
[424113917,1780600256000,551.85,0.00028355,120]
[424113918,1780600302000,173.72,0.00027982,120]
[424113919,1780600382000,991.0,0.0003013,120]
[424113920,1780600383000,1529.0,0.0003013,120]
[424113924,1780600442000,269.80192341,0.0003013,120]
[424113925,1780600486000,268.52977688,0.00015767,2]
[424113926,1780600498000,699.713,0.00014673,2]
[424113928,1780600537000,-159.2520261,0.00016012,2]
[424113929,1780600538000,150.0,0.00015532,2]
[424113930,1780600590000,-218.29816222,0.00016105,2]
[424113931,1780600607000,315.64429338,0.00015767,2]
[424113933,1780600644000,166.66,0.00015348,2]
[424113932,1780600644000,-369.44038887,0.00016105,2]
[424113935,1780600645000,166.66,0.00015994,2]
[424113934,1780600645000,166.66,0.00015671,2]
[424113936,1780600651000,174.11341585,0.00015767,2]
[424113937,1780600698000,-441.44994975,0.00016105,2]
[424113938,1780600698000,176.48,0.00029863,120]
[424113939,1780600703000,441.01951389,0.00015,2]
[424113940,1780600730000,200.0,0.000143,5]
[424113941,1780600732000,400.0,0.000144,5]
[424113942,1780600735000,600.0,0.000145,5]
[424113943,1780600737000,800.0,0.000146,5]
[424113944,1780600751000,-545.61318103,0.00014999,2]
[424113945,1780600751000,1000.0,0.000147,5]
[424113947,1780600752000,200.0,0.000149,5]
[424113946,1780600752000,200.0,0.000148,5]
[424113948,1780600788000,200.0,0.000143,5]
[424113949,1780600791000,400.0,0.000144,5]
[424113952,1780600805000,800.0,0.000146,5]
[424113950,1780600805000,-219.28,0.00014985,2]
[424113951,1780600805000,600.0,0.000145,5]
[424113954,1780600806000,200.0,0.000148,5]
[424113953,1780600806000,1000.0,0.000147,5]
[424113956,1780600807000,200.0,0.000149,5]
[424113955,1780600807000,260.56804657,0.00022221,120]
[424113957,1780600812000,1097.6677755,0.00014999,5]
[424113958,1780600813000,766.741,0.0003013,120]
[424113959,1780600822000,278.386589,0.00022016,120]
[424113960,1780600858000,-164.0,0.00014959,2]
[424113961,1780600874000,133747.72038773,0.000149,2]
[424113962,1780600874000,33300.0,0.000149,2]
[424113963,1780600880000,300.0,0.000143,5]
[424113964,1780600882000,600.0,0.000144,5]
[424113965,1780600884000,1000.0,0.000145,5]
[424113966,1780600887000,1300.0,0.000146,5]
[424113967,1780600889000,1700.0,0.000147,5]
[424113968,1780600891000,300.0,0.000148,5]
[424113969,1780600893000,300.0,0.000149,5]
[424113970,1780600912000,-3766.82509534,0.000149,2]
[424113972,1780600914000,1575.39933032,0.0001,2]
[424113971,1780600914000,337.32,0.00013699,2]
[424113974,1780600928000,-4021.63276586,0.000149,2]
[424113976,1780600930000,1588.35239231,0.0001,2]
[424113979,1780600945000,11096.6947449,0.0001,2]
[424113978,1780600945000,-188.04265458,0.000149,2]
[424113980,1780600946000,4115.64275301,9.04e-05,2]
[424113981,1780600946000,674.64,0.00013699,2]
[424113982,1780600955000,151.99706074,0.000149,7]
[424113983,1780600982000,673.32287189,0.000155,3]
[424113984,1780600999000,200.0,0.000141,5]
[424113985,1780601001000,500.0,0.000142,5]
[424113986,1780601003000,800.0,0.000143,5]
[424113987,1780601005000,1000.0,0.000144,5]
[424113988,1780601008000,1300.0,0.000145,5]
[424113989,1780601009000,200.0,0.000146,5]
[424113990,1780601011000,200.0,0.000147,5]
[424113991,1780601014000,200.0,0.000148,5]
[424113993,1780601016000,-150.0,0.00014453,2]
[424113994,1780601016000,-3097.936,0.00014602,2]
[424113992,1780601016000,200.0,0.000149,5]
[424113995,1780601016000,-169.183,0.00014602,2]
[424113997,1780601016000,-500.0,0.00014899,2]
[424113998,1780601016000,-381.92922672,0.00014899,2]
[424113996,1780601016000,-334.34546693,0.000148,2]
[424113999,1780601016000,-153.44980498,0.00014899,2]
[424114002,1780601016000,-63131.82241194,0.000149,2]
[424114001,1780601016000,-323.04013821,0.00014899,2]
[424114004,1780601016000,-724.19857037,0.000149,2]
[424114003,1780601016000,-260.99516726,0.000149,2]
[424114005,1780601016000,-617.55130293,0.000149,2]
[424114000,1780601016000,-155.54891066,0.00014899,2]
[424114006,1780601027000,1500.0,9.59e-06,30]
[424114007,1780601045000,407.30116429,0.000155,3]
[424114008,1780601047000,316.26562476,0.000141,2]
[424114009,1780601048000,243.31962057,0.000141,2]
[424114011,1780601050000,2205.32627473,9.21e-06,10]
[424114010,1780601050000,180.09372527,9.21e-06,10]
[424114012,1780601061000,422.15087394,0.00015,3]
[424114013,1780601071000,229.19,0.00028767,120]
[424114014,1780601076000,1050.28441449,0.00014453,7]
[424114015,1780601077000,1050.28441449,0.00014742,7]
[424114016,1780601091000,1038.70666932,0.000141,2]
[424114017,1780601092000,836.18180609,0.000141,2]
[424114018,1780601106000,179.84726735,0.00015,3]
[424114020,1780601109000,150.0,0.00013576,2]
[424114022,1780601109000,150.0,0.00013752,2]
[424114019,1780601109000,150.0,0.00013488,2]
[424114023,1780601109000,150.0,0.0001384,2]
[424114025,1780601109000,150.0,0.00014017,2]
[424114021,1780601109000,150.0,0.00013664,2]
[424114024,1780601109000,150.0,0.00013928,2]
[424114032,1780601110000,150.0,0.00013702,2]
[424114031,1780601110000,150.0,0.00013659,2]
[424114030,1780601110000,150.0,0.00013616,2]
[424114028,1780601110000,150.0,0.0001353,2]
[424114029,1780601110000,150.0,0.00013573,2]
[424114027,1780601110000,150.0,0.00013488,2]
[424114026,1780601110000,150.0,0.00013488,2]
[424114033,1780601111000,150.0,0.00013745,2]
[424114034,1780601111000,150.0,0.00013787,2]
[424114035,1780601111000,150.0,0.0001383,2]
[424114036,1780601111000,150.0,0.00013873,2]
[424114038,1780601111000,150.0,0.00013959,2]
[424114040,1780601111000,150.0,0.00014044,2]
[424114039,1780601111000,150.0,0.00014001,2]
[424114041,1780601111000,150.0,0.00014087,2]
[424114037,1780601111000,150.0,0.00013916,2]
[424114042,1780601113000,150.0,0.00013488,2]
[424114043,1780601113000,150.0,0.00013987,2]
[424114049,1780601115000,150.0,0.00013581,2]
[424114044,1780601115000,150.0,0.00013488,2]
[424114045,1780601115000,150.0,0.00013506,2]
[424114046,1780601115000,150.0,0.00013525,2]
[424114047,1780601115000,150.0,0.00013544,2]
[424114048,1780601115000,150.0,0.00013563,2]
[424114050,1780601115000,150.0,0.000136,2]
[424114057,1780601115000,150.0,0.00013731,2]
[424114052,1780601115000,150.0,0.00013638,2]
[424114054,1780601115000,150.0,0.00013675,2]
[424114053,1780601115000,150.0,0.00013656,2]
[424114055,1780601115000,150.0,0.00013694,2]
[424114056,1780601115000,150.0,0.00013712,2]
[424114058,1780601115000,150.0,0.0001375,2]
[424114051,1780601115000,150.0,0.00013619,2]
[424114064,1780601116000,150.0,0.00013862,2]
[424114059,1780601116000,150.0,0.00013769,2]
[424114060,1780601116000,150.0,0.00013787,2]
[424114061,1780601116000,150.0,0.00013806,2]
[424114063,1780601116000,150.0,0.00013844,2]
[424114065,1780601116000,150.0,0.00013881,2]
[424114062,1780601116000,150.0,0.00013825,2]
[424114067,1780601116000,150.0,0.00013919,2]
[424114072,1780601116000,150.0,0.00014012,2]
[424114071,1780601116000,150.0,0.00013993,2]
[424114066,1780601116000,150.0,0.000139,2]
[424114069,1780601116000,150.0,0.00013956,2]
[424114068,1780601116000,150.0,0.00013937,2]
[424114070,1780601116000,150.0,0.00013975,2]
[424114076,1780601117000,150.0,0.00014087,2]
[424114075,1780601117000,150.0,0.00014068,2]
[424114074,1780601117000,150.0,0.0001405,2]
[424114073,1780601117000,150.0,0.00014031,2]
[424114077,1780601123000,150.0,0.00013488,2]
[424114078,1780601123000,150.0,0.00013702,2]
[424114079,1780601123000,150.0,0.00013916,2]
[424114080,1780601124000,150.0,0.00013488,2]
[424114081,1780601124000,150.0,0.00013787,2]
[424114082,1780601124000,150.0,0.00014087,2]
[424114083,1780601129000,6529.54,0.00013576,2]
[424114084,1780601131000,150.0,0.00013488,2]
[424114086,1780601131000,150.0,0.00013515,2]
[424114085,1780601131000,150.0,0.00013488,2]
[424114087,1780601131000,150.0,0.00013543,2]
[424114088,1780601131000,150.0,0.00013571,2]
[424114089,1780601131000,150.0,0.00013599,2]
[424114091,1780601131000,150.0,0.00013654,2]
[424114093,1780601131000,150.0,0.0001371,2]
[424114092,1780601131000,150.0,0.00013682,2]
[424114094,1780601131000,150.0,0.00013737,2]
[424114090,1780601131000,150.0,0.00013626,2]
[424114095,1780601132000,150.0,0.00013765,2]
[424114096,1780601132000,150.0,0.00013793,2]
[424114097,1780601132000,150.0,0.00013821,2]
[424114098,1780601132000,150.0,0.00013848,2]
[424114099,1780601132000,150.0,0.00013876,2]
[424114100,1780601132000,150.0,0.00013904,2]
[424114101,1780601132000,150.0,0.00013932,2]
[424114103,1780601132000,150.0,0.00013987,2]
[424114104,1780601132000,150.0,0.00014015,2]
[424114105,1780601132000,150.0,0.00014043,2]
[424114106,1780601132000,150.0,0.0001407,2]
[424114107,1780601132000,150.0,0.00014098,2]
[424114102,1780601132000,150.0,0.00013959,2]
[424114108,1780601135000,436.15092908,0.00013488,2]
[424114109,1780601135000,436.15092908,0.00013503,2]
[424114110,1780601135000,436.15092908,0.00013518,2]
[424114111,1780601135000,436.15092908,0.00013533,2]
[424114114,1780601135000,436.15092908,0.00013578,2]
[424114113,1780601135000,436.15092908,0.00013563,2]
[424114112,1780601135000,436.15092908,0.00013548,2]
[424114117,1780601135000,436.15092908,0.00013624,2]
[424114115,1780601135000,436.15092908,0.00013594,2]
[424114116,1780601135000,436.15092908,0.00013609,2]
[424114118,1780601136000,436.15092908,0.00013639,2]
[424114119,1780601136000,436.15092908,0.00013654,2]
[424114120,1780601136000,436.15092908,0.00013669,2]
[424114121,1780601136000,436.15092908,0.00013684,2]
[424114123,1780601136000,436.15092908,0.00013715,2]
[424114122,1780601136000,436.15092908,0.000137,2]
[424114130,1780601136000,436.15092908,0.00013821,2]
[424114125,1780601136000,436.15092908,0.00013745,2]
[424114126,1780601136000,436.15092908,0.0001376,2]
[424114127,1780601136000,436.15092908,0.00013775,2]
[424114129,1780601136000,436.15092908,0.00013806,2]
[424114128,1780601136000,436.15092908,0.0001379,2]
[424114124,1780601136000,436.15092908,0.0001373,2]
[424114131,1780601137000,436.15092908,0.00013836,2]
[424114132,1780601137000,436.15092908,0.00013851,2]
[424114133,1780601137000,436.15092908,0.00013866,2]
[424114135,1780601137000,436.15092908,0.00013896,2]
[424114136,1780601137000,436.15092908,0.00013912,2]
[424114137,1780601137000,436.15092908,0.00013927,2]
[424114134,1780601137000,436.15092908,0.00013881,2]
[424114140,1780601137000,436.15092908,0.00013972,2]
[424114142,1780601137000,436.15092908,0.00014002,2]
[424114141,1780601137000,436.15092908,0.00013987,2]
[424114143,1780601137000,436.15092908,0.00014017,2]
[424114144,1780601137000,436.15092908,0.00014033,2]
[424114138,1780601137000,436.15092908,0.00013942,2]
[424114139,1780601137000,436.15092908,0.00013957,2]
[424114148,1780601138000,436.15092908,0.00014093,2]
[424114147,1780601138000,436.15092908,0.00014078,2]
[424114146,1780601138000,436.15092908,0.00014063,2]
[424114145,1780601138000,436.15092908,0.00014048,2]
[424114149,1780601143000,150.0,0.00013488,2]
[424114155,1780601144000,150.0,0.00013593,2]
[424114150,1780601144000,150.0,0.00013488,2]
[424114151,1780601144000,150.0,0.00013509,2]
[424114152,1780601144000,150.0,0.0001353,2]
[424114153,1780601144000,150.0,0.00013551,2]
[424114156,1780601144000,150.0,0.00013614,2]
[424114157,1780601144000,150.0,0.00013635,2]
[424114160,1780601144000,150.0,0.00013699,2]
[424114154,1780601144000,150.0,0.00013572,2]
[424114158,1780601144000,150.0,0.00013657,2]
[424114159,1780601144000,150.0,0.00013678,2]
[424114168,1780601145000,150.0,0.00013868,2]
[424114167,1780601145000,150.0,0.00013846,2]
[424114166,1780601145000,150.0,0.00013825,2]
[424114165,1780601145000,150.0,0.00013804,2]
[424114164,1780601145000,150.0,0.00013783,2]
[424114163,1780601145000,150.0,0.00013762,2]
[424114162,1780601145000,150.0,0.00013741,2]
[424114161,1780601145000,150.0,0.0001372,2]
[424114169,1780601146000,150.0,0.00013889,2]
[424114171,1780601146000,150.0,0.00013931,2]
[424114173,1780601146000,150.0,0.00013973,2]
[424114175,1780601146000,150.0,0.00014015,2]
[424114170,1780601146000,150.0,0.0001391,2]
[424114176,1780601146000,150.0,0.00014036,2]
[424114174,1780601146000,150.0,0.00013994,2]
[424114179,1780601146000,150.0,0.000141,2]
[424114172,1780601146000,150.0,0.00013952,2]
[424114177,1780601146000,150.0,0.00014058,2]
[424114178,1780601146000,150.0,0.00014079,2]
[424114180,1780601157000,228.17969702,0.00014411,10]
[424114181,1780601159000,150.0,0.00013341,2]
[424114183,1780601180000,152.0,0.00029756,120]
[424114184,1780601181000,152.0,0.00029756,120]
[424114185,1780601182000,152.0,0.00029756,120]
[424114187,1780601183000,152.0,0.00029756,120]
[424114186,1780601183000,152.0,0.00029756,120]
[424114188,1780601184000,152.0,0.00029756,120]
[424114190,1780601185000,152.0,0.00029776,120]
[424114189,1780601185000,152.0,0.00029756,120]
[424114191,1780601186000,152.0,0.00029776,120]
[424114192,1780601187000,152.0,0.00029776,120]
[424114195,1780601188000,200.0,0.00013699,2]
[424114194,1780601188000,152.0,0.00029776,120]
[424114193,1780601188000,152.0,0.00029776,120]
[424114196,1780601189000,152.0,0.00029776,120]
[424114197,1780601190000,152.0,0.00029797,120]
[424114198,1780601190000,152.0,0.00029797,120]
[424114200,1780601191000,152.0,0.00029797,120]
[424114199,1780601191000,298.17,0.0001333,2]
[424114201,1780601213000,843.21,0.00013851,2]
[424114202,1780601239000,1200.0,0.000141,5]
[424114203,1780601241000,2500.0,0.000142,5]
[424114204,1780601243000,3700.0,0.000143,5]
[424114205,1780601245000,5000.0,0.000144,5]
[424114206,1780601247000,6300.0,0.000145,5]
[424114207,1780601249000,1200.0,0.000146,5]
[424114208,1780601252000,1200.0,0.000147,5]
[424114209,1780601254000,1200.0,0.000148,5]
[424114210,1780601256000,1200.0,0.000149,5]
[424114211,1780601267000,19801.53,0.0001332,2]
[424114212,1780601273000,198.48085873,0.00014022,2]
[424114215,1780601277000,4000.0,0.00013985,2]
[424114214,1780601277000,4000.0,0.00013653,2]
[424114213,1780601277000,4000.0,0.0001332,2]